fUSD/lending_fUSD_20260611
["ID","MTS","AMOUNT","RATE_DAILY","PERIOD"]
[424831994,1781191888000,-150.0,0.00031993,30]
[424831995,1781191888000,-50000.0,0.00032,13]
[424831991,1781191888000,-396.12,0.00031936,2]
[424831993,1781191888000,-150.0,0.00031958,30]
[424831990,1781191888000,-396.0,0.00031936,2]
[424831992,1781191888000,-150.0,0.0003195,3]
[424831997,1781191888000,-342.58785961,0.00032,120]
[424831996,1781191888000,-168.39780961,0.00032,120]
[424832015,1781191888000,-1380.1519388,0.00032,120]
[424831999,1781191888000,-185.87068679,0.00032,120]
[424832009,1781191888000,-371.6220728,0.00032,120]
[424831998,1781191888000,-374.19728299,0.00032,120]
[424832002,1781191888000,-184.07541165,0.00032,120]
[424832001,1781191888000,-353.82709358,0.00032,120]
[424832003,1781191888000,-180.00618676,0.00032,120]
[424832006,1781191888000,-443.07313416,0.00032,120]
[424832007,1781191888000,-1269.53919301,0.00032,120]
[424832005,1781191888000,-1327.7366196,0.00032,120]
[424832004,1781191888000,-1483.76927669,0.00032,120]
[424832008,1781191888000,-195.49555799,0.00032,120]
[424832010,1781191888000,-205.39761631,0.00032,120]
[424832012,1781191888000,-178.25990568,0.00032,120]
[424832013,1781191888000,-173.69818157,0.00032,120]
[424832000,1781191888000,-188.43175161,0.00032,120]
[424832046,1781191888000,-534.0,0.00032201,30]
[424832101,1781191888000,-500.0,0.00032603,15]
[424832042,1781191888000,-1552.3712962,0.000322,2]
[424832078,1781191888000,-150.0,0.00032417,30]
[424832081,1781191888000,-2318.0,0.0003248,11]
[424832080,1781191888000,-320.0,0.00032476,24]
[424832083,1781191888000,-400.0,0.0003249,30]
[424832082,1781191888000,-150.0,0.00032488,30]
[424832087,1781191888000,-25047.52316138,0.00032547,120]
[424832085,1781191888000,-151.0,0.000325,5]
[424832088,1781191888000,-150.0,0.00032559,30]
[424832096,1781191888000,-500.0,0.00032603,15]
[424832090,1781191888000,-150.0,0.00032594,30]
[424832094,1781191888000,-201.72014,0.000326,6]
[424832091,1781191888000,-10000.0,0.000326,30]
[424832089,1781191888000,-900.56,0.00032588,2]
[424832077,1781191888000,-671.0,0.00032404,15]
[424832092,1781191888000,-30886.60028084,0.000326,30]
[424832095,1781191888000,-500.0,0.00032603,15]
[424832086,1781191888000,-150.0,0.00032523,30]
[424832098,1781191888000,-500.0,0.00032603,15]
[424832097,1781191888000,-500.0,0.00032603,15]
[424832108,1781191888000,-282.660493,0.00032603,15]
[424832105,1781191888000,-500.0,0.00032603,15]
[424832102,1781191888000,-500.0,0.00032603,15]
[424832106,1781191888000,-500.0,0.00032603,15]
[424832107,1781191888000,-500.0,0.00032603,15]
[424832104,1781191888000,-500.0,0.00032603,15]
[424832099,1781191888000,-500.0,0.00032603,15]
[424832103,1781191888000,-500.0,0.00032603,15]
[424832040,1781191888000,-2325.41192201,0.000322,2]
[424832093,1781191888000,-195.042,0.000326,27]
[424832079,1781191888000,-150.0,0.00032453,30]
[424832100,1781191888000,-500.0,0.00032603,15]
[424832075,1781191888000,-150.0,0.00032383,2]
[424832044,1781191888000,-1788.0,0.000322,30]
[424832060,1781191888000,-100000.0,0.00032232,30]
[424832050,1781191888000,-663.0,0.00032201,30]
[424832049,1781191888000,-581.0,0.00032201,30]
[424832052,1781191888000,-553.0,0.00032201,30]
[424832054,1781191888000,-599.0,0.00032201,30]
[424832051,1781191888000,-1969.0,0.00032201,30]
[424832076,1781191888000,-2513.38260962,0.000324,120]
[424832058,1781191888000,-100000.0,0.00032232,90]
[424832055,1781191888000,-811.0,0.00032201,30]
[424832056,1781191888000,-150.0,0.00032205,30]
[424832059,1781191888000,-100000.0,0.00032232,60]
[424832057,1781191888000,-2239.2,0.0003221,5]
[424832062,1781191888000,-100000.0,0.00032232,7]
[424832053,1781191888000,-463.0,0.00032201,30]
[424832071,1781191888000,-150.0,0.00032311,30]
[424832064,1781191888000,-150.0,0.00032241,30]
[424832074,1781191888000,-150.0,0.00032382,30]
[424832084,1781191888000,-5000.0,0.000325,3]
[424832073,1781191888000,-150.0,0.00032347,30]
[424832067,1781191888000,-189.78,0.00032275,7]
[424832061,1781191888000,-100000.0,0.00032232,120]
[424832068,1781191888000,-150.0,0.00032276,30]
[424832070,1781191888000,-300.0,0.000323,10]
[424832066,1781191888000,-550.48,0.00032275,30]
[424832072,1781191888000,-8421.78,0.00032336,120]
[424832063,1781191888000,-2110.0,0.00032232,2]
[424832069,1781191888000,-151.50434681,0.00032279,7]
[424832065,1781191888000,-320.0,0.00032259,23]
[424832160,1781191889000,-150.0,0.00032771,30]
[424832150,1781191889000,-1000.0,0.0003274,120]
[424832151,1781191889000,-714.0,0.0003274,120]
[424832149,1781191889000,-1000.0,0.0003274,120]
[424832147,1781191889000,-1000.0,0.0003274,120]
[424832141,1781191889000,-1000.0,0.0003274,120]
[424832146,1781191889000,-1000.0,0.0003274,120]
[424832143,1781191889000,-1000.0,0.0003274,120]
[424832142,1781191889000,-1000.0,0.0003274,120]
[424832144,1781191889000,-1000.0,0.0003274,120]
[424832136,1781191889000,-1000.0,0.0003274,120]
[424832145,1781191889000,-1000.0,0.0003274,120]
[424832159,1781191889000,-25000.0,0.00032763,10]
[424832167,1781191889000,-800.0,0.000328,12]
[424832154,1781191889000,-187.94,0.00032758,13]
[424832152,1781191889000,-300.17486916,0.00032748,30]
[424832157,1781191889000,-482.2,0.00032759,2]
[424832155,1781191889000,-482.22,0.00032759,2]
[424832156,1781191889000,-396.12,0.00032759,2]
[424832158,1781191889000,-396.13,0.00032759,2]
[424832153,1781191889000,-187.95,0.00032758,13]
[424832161,1781191889000,-25000.0,0.00032771,10]
[424832164,1781191889000,-25000.0,0.00032798,10]
[424832163,1781191889000,-25000.0,0.00032789,10]
[424832172,1781191889000,-1092.0,0.000328,30]
[424832169,1781191889000,-800.0,0.000328,12]
[424832138,1781191889000,-1000.0,0.0003274,120]
[424832148,1781191889000,-1000.0,0.0003274,120]
[424832137,1781191889000,-1000.0,0.0003274,120]
[424832122,1781191889000,-185.07,0.00032629,2]
[424832140,1781191889000,-1000.0,0.0003274,120]
[424832170,1781191889000,-800.0,0.000328,12]
[424832109,1781191889000,-1274.0,0.00032611,2]
[424832110,1781191889000,-382.0,0.00032611,2]
[424832112,1781191889000,-1214.0,0.00032611,2]
[424832118,1781191889000,-185.09,0.00032626,2]
[424832113,1781191889000,-3643.0,0.00032611,2]
[424832111,1781191889000,-1227.0,0.00032611,2]
[424832119,1781191889000,-396.12,0.00032626,2]
[424832116,1781191889000,-185.09,0.00032625,2]
[424832121,1781191889000,-616.3,0.00032628,30]
[424832114,1781191889000,-1358.0,0.00032611,2]
[424832115,1781191889000,-760442.22388723,0.00032616,3]
[424832120,1781191889000,-575.39,0.00032626,2]
[424832117,1781191889000,-482.22,0.00032626,2]
[424832123,1781191889000,-396.12,0.00032629,2]
[424832126,1781191889000,-364.66,0.00032641,2]
[424832133,1781191889000,-200.0,0.00032712,4]
[424832134,1781191889000,-1779.35,0.00032732,2]
[424832125,1781191889000,-150.0,0.0003263,30]
[424832124,1781191889000,-644.04,0.00032629,2]
[424832127,1781191889000,-1204920.54660888,0.00032642,7]
[424832131,1781191889000,-150.0,0.000327,30]
[424832132,1781191889000,-211.71887929,0.00032708,14]
[424832128,1781191889000,-150.0,0.00032665,30]
[424832129,1781191889000,-320.0,0.00032689,25]
[424832130,1781191889000,-635579.60273,0.000327,7]
[424832135,1781191889000,-150.0,0.00032736,30]
[424832139,1781191889000,-1000.0,0.0003274,120]
[424832165,1781191889000,-800.0,0.000328,12]
[424832229,1781191889000,-500.0,0.00032876,2]
[424832166,1781191889000,-800.0,0.000328,12]
[424832204,1781191889000,-500.0,0.00032876,2]
[424832202,1781191889000,-500.0,0.00032876,2]
[424832206,1781191889000,-500.0,0.00032876,2]
[424832207,1781191889000,-500.0,0.00032876,2]
[424832205,1781191889000,-500.0,0.00032876,2]
[424832203,1781191889000,-500.0,0.00032876,2]
[424832211,1781191889000,-500.0,0.00032876,2]
[424832208,1781191889000,-500.0,0.00032876,2]
[424832215,1781191889000,-349.269247,0.00032876,2]
[424832213,1781191889000,-500.0,0.00032876,2]
[424832209,1781191889000,-500.0,0.00032876,2]
[424832210,1781191889000,-500.0,0.00032876,2]
[424832212,1781191889000,-500.0,0.00032876,2]
[424832214,1781191889000,-500.0,0.00032876,2]
[424832216,1781191889000,-500.0,0.00032876,2]
[424832217,1781191889000,-500.0,0.00032876,2]
[424832218,1781191889000,-500.0,0.00032876,2]
[424832219,1781191889000,-324.47660046,0.00032876,2]
[424832225,1781191889000,-500.0,0.00032876,2]
[424832227,1781191889000,-500.0,0.00032876,2]
[424832226,1781191889000,-500.0,0.00032876,2]
[424832228,1781191889000,-500.0,0.00032876,2]
[424832221,1781191889000,-500.0,0.00032876,2]
[424832220,1781191889000,-500.0,0.00032876,2]
[424832222,1781191889000,-500.0,0.00032876,2]
[424832224,1781191889000,-500.0,0.00032876,2]
[424832171,1781191889000,-195.80192935,0.000328,12]
[424832201,1781191889000,-500.0,0.00032876,2]
[424832199,1781191889000,-500.0,0.00032876,2]
[424832223,1781191889000,-500.0,0.00032876,2]
[424832197,1781191889000,-500.0,0.00032876,2]
[424832200,1781191889000,-500.0,0.00032876,2]
[424832162,1781191889000,-25000.0,0.0003278,10]
[424832173,1781191889000,-200.0,0.000328,12]
[424832174,1781191889000,-5937.24454628,0.000328,7]
[424832175,1781191889000,-200.0,0.000328,2]
[424832185,1781191889000,-500.0,0.0003286,30]
[424832177,1781191889000,-25000.0,0.00032807,10]
[424832176,1781191889000,-150.0,0.00032806,30]
[424832178,1781191889000,-25000.0,0.00032815,10]
[424832180,1781191889000,-202.0,0.00032833,3]
[424832182,1781191889000,-45000.0,0.0003285,30]
[424832184,1781191889000,-500.0,0.0003286,30]
[424832183,1781191889000,-8421.78,0.00032857,120]
[424832168,1781191889000,-800.0,0.000328,12]
[424832181,1781191889000,-150.0,0.00032842,30]
[424832198,1781191889000,-500.0,0.00032876,2]
[424832191,1781191889000,-500.0,0.00032876,2]
[424832193,1781191889000,-500.0,0.00032876,2]
[424832187,1781191889000,-202.0,0.0003286,30]
[424832179,1781191889000,-25000.0,0.00032824,10]
[424832194,1781191889000,-500.0,0.00032876,2]
[424832189,1781191889000,-500.0,0.00032876,2]
[424832195,1781191889000,-500.0,0.00032876,2]
[424832192,1781191889000,-500.0,0.00032876,2]
[424832190,1781191889000,-500.0,0.00032876,2]
[424832188,1781191889000,-478.54397655,0.00032876,2]
[424832186,1781191889000,-171.87,0.0003286,30]
[424832196,1781191889000,-558.76829645,0.00032876,2]
[424832267,1781191890000,-500.0,0.00032876,2]
[424832264,1781191890000,-500.0,0.00032876,2]
[424832271,1781191890000,-500.0,0.00032876,2]
[424832265,1781191890000,-500.0,0.00032876,2]
[424832262,1781191890000,-613.97168419,0.00032876,2]
[424832268,1781191890000,-500.0,0.00032876,2]
[424832266,1781191890000,-500.0,0.00032876,2]
[424832269,1781191890000,-500.0,0.00032876,2]
[424832261,1781191890000,-500.0,0.00032876,2]
[424832259,1781191890000,-500.0,0.00032876,2]
[424832270,1781191890000,-500.0,0.00032876,2]
[424832273,1781191890000,-500.0,0.00032876,2]
[424832272,1781191890000,-200.0,0.00032876,2]
[424832285,1781191890000,-500.0,0.00032876,2]
[424832284,1781191890000,-200.0,0.00032876,2]
[424832276,1781191890000,-500.0,0.00032876,2]
[424832275,1781191890000,-500.0,0.00032876,2]
[424832274,1781191890000,-500.0,0.00032876,2]
[424832278,1781191890000,-500.0,0.00032876,2]
[424832281,1781191890000,-292.81236516,0.00032876,2]
[424832279,1781191890000,-500.0,0.00032876,2]
[424832277,1781191890000,-618.47163807,0.00032876,2]
[424832282,1781191890000,-500.0,0.00032876,2]
[424832280,1781191890000,-500.0,0.00032876,2]
[424832263,1781191890000,-500.0,0.00032876,2]
[424832286,1781191890000,-500.0,0.00032876,2]
[424832283,1781191890000,-500.0,0.00032876,2]
[424832260,1781191890000,-500.0,0.00032876,2]
[424832243,1781191890000,-500.0,0.00032876,2]
[424832256,1781191890000,-500.0,0.00032876,2]
[424832288,1781191890000,-469.46352696,0.00032876,2]
[424832230,1781191890000,-567.63048894,0.00032876,2]
[424832242,1781191890000,-500.0,0.00032876,2]
[424832237,1781191890000,-500.0,0.00032876,2]
[424832240,1781191890000,-500.0,0.00032876,2]
[424832235,1781191890000,-500.0,0.00032876,2]
[424832232,1781191890000,-500.0,0.00032876,2]
[424832234,1781191890000,-500.0,0.00032876,2]
[424832239,1781191890000,-500.0,0.00032876,2]
[424832236,1781191890000,-500.0,0.00032876,2]
[424832238,1781191890000,-500.0,0.00032876,2]
[424832241,1781191890000,-500.0,0.00032876,2]
[424832254,1781191890000,-500.0,0.00032876,2]
[424832245,1781191890000,-500.0,0.00032876,2]
[424832233,1781191890000,-500.0,0.00032876,2]
[424832247,1781191890000,-500.0,0.00032876,2]
[424832257,1781191890000,-500.0,0.00032876,2]
[424832258,1781191890000,-500.0,0.00032876,2]
[424832248,1781191890000,-500.0,0.00032876,2]
[424832246,1781191890000,-500.0,0.00032876,2]
[424832249,1781191890000,-500.0,0.00032876,2]
[424832250,1781191890000,-500.0,0.00032876,2]
[424832251,1781191890000,-500.0,0.00032876,2]
[424832252,1781191890000,-500.0,0.00032876,2]
[424832255,1781191890000,-500.0,0.00032876,2]
[424832253,1781191890000,-500.0,0.00032876,2]
[424832244,1781191890000,-500.0,0.00032876,2]
[424832289,1781191890000,-500.0,0.00032876,2]
[424832231,1781191890000,-500.0,0.00032876,2]
[424832294,1781191890000,-177.803249,0.00032877,7]
[424832323,1781191890000,-291.85,0.00032877,7]
[424832333,1781191890000,-1053.850421,0.00032877,7]
[424832322,1781191890000,-291.85,0.00032877,7]
[424832326,1781191890000,-291.85,0.00032877,7]
[424832324,1781191890000,-291.85,0.00032877,7]
[424832325,1781191890000,-291.85,0.00032877,7]
[424832327,1781191890000,-291.85,0.00032877,7]
[424832328,1781191890000,-291.85,0.00032877,7]
[424832332,1781191890000,-291.85,0.00032877,7]
[424832331,1781191890000,-291.85,0.00032877,7]
[424832329,1781191890000,-291.85,0.00032877,7]
[424832330,1781191890000,-291.85,0.00032877,7]
[424832334,1781191890000,-1053.850421,0.00032877,7]
[424832336,1781191890000,-1053.850421,0.00032877,7]
[424832337,1781191890000,-1053.850421,0.00032877,7]
[424832341,1781191890000,-1053.850421,0.00032877,7]
[424832342,1781191890000,-1053.850421,0.00032877,7]
[424832338,1781191890000,-1053.850421,0.00032877,7]
[424832344,1781191890000,-1053.850421,0.00032877,7]
[424832335,1781191890000,-1053.850421,0.00032877,7]
[424832340,1781191890000,-1053.850421,0.00032877,7]
[424832339,1781191890000,-1053.850421,0.00032877,7]
[424832345,1781191890000,-1053.850421,0.00032877,7]
[424832343,1781191890000,-1053.850421,0.00032877,7]
[424832347,1781191890000,-1053.850421,0.00032877,7]
[424832290,1781191890000,-269.6,0.00032876,14]
[424832346,1781191890000,-1053.850421,0.00032877,7]
[424832320,1781191890000,-291.85,0.00032877,7]
[424832318,1781191890000,-291.85,0.00032877,7]
[424832348,1781191890000,-1053.850421,0.00032877,7]
[424832317,1781191890000,-291.85,0.00032877,7]
[424832319,1781191890000,-291.85,0.00032877,7]
[424832293,1781191890000,-171.792209,0.00032877,7]
[424832297,1781191890000,-151.0,0.00032877,7]
[424832296,1781191890000,-151.059707,0.00032877,7]
[424832295,1781191890000,-151.0,0.00032877,7]
[424832292,1781191890000,-100000.0,0.00032876,14]
[424832291,1781191890000,-100000.00832288,0.00032876,7]
[424832298,1781191890000,-253.785204,0.00032877,7]
[424832300,1781191890000,-151.0,0.00032877,7]
[424832301,1781191890000,-158.506487,0.00032877,7]
[424832302,1781191890000,-151.0,0.00032877,7]
[424832306,1781191890000,-151.0,0.00032877,7]
[424832304,1781191890000,-179.328283,0.00032877,7]
[424832287,1781191890000,-500.0,0.00032876,2]
[424832307,1781191890000,-151.0,0.00032877,7]
[424832316,1781191890000,-291.85,0.00032877,7]
[424832311,1781191890000,-151.0,0.00032877,7]
[424832321,1781191890000,-291.85,0.00032877,7]
[424832314,1781191890000,-291.85,0.00032877,7]
[424832303,1781191890000,-151.0,0.00032877,7]
[424832313,1781191890000,-291.85,0.00032877,7]
[424832315,1781191890000,-291.85,0.00032877,7]
[424832310,1781191890000,-151.0,0.00032877,7]
[424832309,1781191890000,-151.0,0.00032877,7]
[424832299,1781191890000,-151.0,0.00032877,7]
[424832308,1781191890000,-161.684617,0.00032877,7]
[424832305,1781191890000,-151.0,0.00032877,7]
[424832312,1781191890000,-152.148738,0.00032877,7]
[424832386,1781191891000,-306.117293,0.00032877,7]
[424832387,1781191891000,-306.117293,0.00032877,7]
[424832388,1781191891000,-306.117293,0.00032877,7]
[424832384,1781191891000,-306.117293,0.00032877,7]
[424832380,1781191891000,-306.117293,0.00032877,7]
[424832382,1781191891000,-306.117293,0.00032877,7]
[424832393,1781191891000,-306.117293,0.00032877,7]
[424832383,1781191891000,-306.117293,0.00032877,7]
[424832378,1781191891000,-204.221665,0.00032877,7]
[424832370,1781191891000,-838.701998,0.00032877,7]
[424832385,1781191891000,-306.117293,0.00032877,7]
[424832389,1781191891000,-306.117293,0.00032877,7]
[424832394,1781191891000,-306.117293,0.00032877,7]
[424832392,1781191891000,-306.117293,0.00032877,7]
[424832391,1781191891000,-306.117293,0.00032877,7]
[424832397,1781191891000,-306.117293,0.00032877,7]
[424832395,1781191891000,-306.117293,0.00032877,7]
[424832403,1781191891000,-1000.0,0.00032877,50]
[424832398,1781191891000,-306.117284,0.00032877,7]
[424832399,1781191891000,-1000.0,0.00032877,50]
[424832401,1781191891000,-1000.0,0.00032877,50]
[424832396,1781191891000,-306.117293,0.00032877,7]
[424832400,1781191891000,-1000.0,0.00032877,50]
[424832405,1781191891000,-1000.0,0.00032877,50]
[424832381,1781191891000,-306.117293,0.00032877,7]
[424832390,1781191891000,-306.117293,0.00032877,7]
[424832376,1781191891000,-151.0,0.00032877,7]
[424832367,1781191891000,-838.701998,0.00032877,7]
[424832374,1781191891000,-151.0,0.00032877,7]
[424832350,1781191891000,-1053.850421,0.00032877,7]
[424832349,1781191891000,-1053.850421,0.00032877,7]
[424832354,1781191891000,-838.701998,0.00032877,7]
[424832353,1781191891000,-838.701998,0.00032877,7]
[424832356,1781191891000,-838.701998,0.00032877,7]
[424832355,1781191891000,-838.701998,0.00032877,7]
[424832351,1781191891000,-1053.850421,0.00032877,7]
[424832352,1781191891000,-1053.850422,0.00032877,7]
[424832358,1781191891000,-838.701998,0.00032877,7]
[424832368,1781191891000,-838.701998,0.00032877,7]
[424832357,1781191891000,-838.701998,0.00032877,7]
[424832360,1781191891000,-838.701998,0.00032877,7]
[424832359,1781191891000,-838.701998,0.00032877,7]
[424832362,1781191891000,-838.701998,0.00032877,7]
[424832363,1781191891000,-838.701998,0.00032877,7]
[424832365,1781191891000,-838.701998,0.00032877,7]
[424832361,1781191891000,-838.701998,0.00032877,7]
[424832366,1781191891000,-838.701998,0.00032877,7]
[424832364,1781191891000,-838.701998,0.00032877,7]
[424832369,1781191891000,-838.701998,0.00032877,7]
[424832371,1781191891000,-838.701998,0.00032877,7]
[424832373,1781191891000,-151.0,0.00032877,7]
[424832379,1781191891000,-306.117293,0.00032877,7]
[424832375,1781191891000,-151.0,0.00032877,7]
[424832377,1781191891000,-151.0,0.00032877,7]
[424832372,1781191891000,-838.701989,0.00032877,7]
[424832404,1781191891000,-1000.0,0.00032877,50]
[424832402,1781191891000,-1000.0,0.00032877,50]
[424832418,1781191891000,-151.0,0.00032877,7]
[424832434,1781191891000,-151.0,0.00032877,7]
[424832438,1781191891000,-151.0,0.00032877,7]
[424832437,1781191891000,-151.0,0.00032877,7]
[424832440,1781191891000,-431.135298,0.00032877,7]
[424832439,1781191891000,-267.710823,0.00032877,7]
[424832445,1781191891000,-431.135298,0.00032877,7]
[424832443,1781191891000,-431.135298,0.00032877,7]
[424832444,1781191891000,-431.135298,0.00032877,7]
[424832447,1781191891000,-431.135298,0.00032877,7]
[424832448,1781191891000,-151.0,0.00032877,7]
[424832446,1781191891000,-151.0,0.00032877,7]
[424832449,1781191891000,-431.135298,0.00032877,7]
[424832450,1781191891000,-151.0,0.00032877,7]
[424832451,1781191891000,-431.135298,0.00032877,7]
[424832452,1781191891000,-151.0,0.00032877,7]
[424832453,1781191891000,-431.135298,0.00032877,7]
[424832456,1781191891000,-151.0,0.00032877,7]
[424832457,1781191891000,-151.0,0.00032877,7]
[424832455,1781191891000,-431.135298,0.00032877,7]
[424832459,1781191891000,-151.0,0.00032877,7]
[424832458,1781191891000,-431.135298,0.00032877,7]
[424832462,1781191891000,-431.135298,0.00032877,7]
[424832460,1781191891000,-431.135298,0.00032877,7]
[424832461,1781191891000,-172.750283,0.00032877,7]
[424832416,1781191891000,-1000.0,0.00032877,50]
[424832436,1781191891000,-151.0,0.00032877,7]
[424832435,1781191891000,-151.0,0.00032877,7]
[424832454,1781191891000,-151.0,0.00032877,7]
[424832432,1781191891000,-151.0,0.00032877,7]
[424832417,1781191891000,-1000.0,0.00032877,50]
[424832441,1781191891000,-431.135298,0.00032877,7]
[424832408,1781191891000,-1000.0,0.00032877,50]
[424832406,1781191891000,-1000.0,0.00032877,50]
[424832419,1781191891000,-151.0,0.00032877,7]
[424832407,1781191891000,-1000.0,0.00032877,50]
[424832409,1781191891000,-1000.0,0.00032877,50]
[424832415,1781191891000,-1000.0,0.00032877,50]
[424832412,1781191891000,-1000.0,0.00032877,50]
[424832414,1781191891000,-1000.0,0.00032877,50]
[424832411,1781191891000,-1000.0,0.00032877,50]
[424832413,1781191891000,-1000.0,0.00032877,50]
[424832423,1781191891000,-151.0,0.00032877,7]
[424832410,1781191891000,-1000.0,0.00032877,50]
[424832426,1781191891000,-151.0,0.00032877,7]
[424832420,1781191891000,-151.0,0.00032877,7]
[424832424,1781191891000,-151.0,0.00032877,7]
[424832428,1781191891000,-151.0,0.00032877,7]
[424832421,1781191891000,-236.077817,0.00032877,7]
[424832431,1781191891000,-151.0,0.00032877,7]
[424832425,1781191891000,-151.0,0.00032877,7]
[424832427,1781191891000,-151.0,0.00032877,7]
[424832430,1781191891000,-151.0,0.00032877,7]
[424832429,1781191891000,-151.0,0.00032877,7]
[424832422,1781191891000,-151.0,0.00032877,7]
[424832433,1781191891000,-151.0,0.00032877,7]
[424832442,1781191891000,-431.135298,0.00032877,7]
[424832502,1781191892000,-500.0,0.00032877,7]
[424832505,1781191892000,-500.0,0.00032877,7]
[424832496,1781191892000,-500.0,0.00032877,7]
[424832504,1781191892000,-500.0,0.00032877,7]
[424832503,1781191892000,-500.0,0.00032877,7]
[424832501,1781191892000,-161.617937,0.00032877,7]
[424832494,1781191892000,-500.0,0.00032877,7]
[424832499,1781191892000,-500.0,0.00032877,7]
[424832497,1781191892000,-500.0,0.00032877,7]
[424832498,1781191892000,-500.0,0.00032877,7]
[424832515,1781191892000,-151.0,0.00032877,7]
[424832500,1781191892000,-500.0,0.00032877,7]
[424832507,1781191892000,-500.0,0.00032877,7]
[424832525,1781191892000,-187.260041,0.00032877,7]
[424832511,1781191892000,-151.0,0.00032877,7]
[424832509,1781191892000,-500.0,0.00032877,7]
[424832508,1781191892000,-500.0,0.00032877,7]
[424832510,1781191892000,-151.0,0.00032877,7]
[424832512,1781191892000,-151.0,0.00032877,7]
[424832513,1781191892000,-151.0,0.00032877,7]
[424832514,1781191892000,-151.0,0.00032877,7]
[424832516,1781191892000,-151.0,0.00032877,7]
[424832518,1781191892000,-264.996781,0.00032877,7]
[424832519,1781191892000,-187.260041,0.00032877,7]
[424832528,1781191892000,-187.260041,0.00032877,7]
[424832524,1781191892000,-187.260041,0.00032877,7]
[424832495,1781191892000,-500.0,0.00032877,7]
[424832506,1781191892000,-500.0,0.00032877,7]
[424832493,1781191892000,-500.0,0.00032877,7]
[424832463,1781191892000,-431.135298,0.00032877,7]
[424832489,1781191892000,-500.0,0.00032877,7]
[424832517,1781191892000,-151.0,0.00032877,7]
[424832466,1781191892000,-431.135298,0.00032877,7]
[424832465,1781191892000,-431.135298,0.00032877,7]
[424832464,1781191892000,-431.135298,0.00032877,7]
[424832467,1781191892000,-431.135298,0.00032877,7]
[424832468,1781191892000,-431.135306,0.00032877,7]
[424832476,1781191892000,-400.0,0.00032877,7]
[424832471,1781191892000,-400.0,0.00032877,7]
[424832477,1781191892000,-400.0,0.00032877,7]
[424832475,1781191892000,-400.0,0.00032877,7]
[424832469,1781191892000,-400.0,0.00032877,7]
[424832478,1781191892000,-400.0,0.00032877,7]
[424832470,1781191892000,-400.0,0.00032877,7]
[424832488,1781191892000,-400.0,0.00032877,7]
[424832472,1781191892000,-400.0,0.00032877,7]
[424832474,1781191892000,-400.0,0.00032877,7]
[424832480,1781191892000,-400.0,0.00032877,7]
[424832491,1781191892000,-500.0,0.00032877,7]
[424832490,1781191892000,-500.0,0.00032877,7]
[424832492,1781191892000,-500.0,0.00032877,7]
[424832479,1781191892000,-400.0,0.00032877,7]
[424832486,1781191892000,-400.0,0.00032877,7]
[424832483,1781191892000,-400.0,0.00032877,7]
[424832481,1781191892000,-400.0,0.00032877,7]
[424832482,1781191892000,-400.0,0.00032877,7]
[424832484,1781191892000,-400.0,0.00032877,7]
[424832485,1781191892000,-400.0,0.00032877,7]